[Event "*** Titled Tuesday Blitz"]
[Site "Chess.com"]
[Date "2018.08.07"]
[Round "9"]
[White "hypert"]
[Black "Kimster98"]
[Result "0-1"]
[WhiteElo "2359"]
[BlackElo "2511"]
[TimeControl "180+2"]
[EndTime "15:06:43 PDT"]
[Termination "Kimster98 won by resignation"]

1. e4 {[%clk 0:03:01.9]} 1... d6 {[%clk 0:02:57.6]} 2. d4 {[%clk 0:03:02.3]}
2... Nf6 {[%clk 0:02:58]} 3. Nc3 {[%clk 0:03:03.2]} 3... c6 {[%clk 0:02:58.7]}
4. h3 {[%clk 0:03:01.6]} 4... b5 {[%clk 0:02:51.6]} 5. a3 {[%clk 0:02:54.8]}
5... Nbd7 {[%clk 0:02:43.6]} 6. f4 {[%clk 0:02:53.6]} 6... e5 {[%clk 0:02:42.4]}
7. fxe5 {[%clk 0:02:52.2]} 7... dxe5 {[%clk 0:02:42.6]} 8. d5 {[%clk 0:02:53.8]}
8... a6 {[%clk 0:02:17.1]} 9. dxc6 {[%clk 0:02:53.5]} 9... Nc5 {[%clk
0:02:18.5]} 10. Qxd8+ {[%clk 0:02:53.4]} 10... Kxd8 {[%clk 0:02:20.4]} 11. Bg5
{[%clk 0:02:53.6]} 11... Be7 {[%clk 0:02:14.9]} 12. Nf3 {[%clk 0:02:47.2]} 12...
Nfxe4 {[%clk 0:02:01.8]} 13. Bxe7+ {[%clk 0:02:17.3]} 13... Kxe7 {[%clk
0:02:02]} 14. Nd5+ {[%clk 0:02:18.4]} 14... Kd6 {[%clk 0:01:59.3]} 15. Rd1
{[%clk 0:02:17.5]} 15... Kxc6 {[%clk 0:01:53.5]} 16. Nxe5+ {[%clk 0:02:17.6]}
16... Kb7 {[%clk 0:01:53.4]} 17. b4 {[%clk 0:02:14.2]} 17... Re8 {[%clk
0:01:44.1]} 18. Nxf7 {[%clk 0:01:58.4]} 18... Be6 {[%clk 0:00:45.6]} 19. bxc5
{[%clk 0:01:55.1]} 19... Bxf7 {[%clk 0:00:45]} 20. Ne3 {[%clk 0:01:29.8]} 20...
Ng3 {[%clk 0:00:33.1]} 21. Rd7+ {[%clk 0:01:21]} 21... Kc6 {[%clk 0:00:34.1]}
22. Rxf7 {[%clk 0:01:21.9]} 22... Nxh1 {[%clk 0:00:35.7]} 23. Kd2 {[%clk
0:01:20.3]} 23... Rad8+ {[%clk 0:00:35.4]} 24. Bd3 {[%clk 0:01:21.2]} 24... Rd7
{[%clk 0:00:36.4]} 25. Rf3 {[%clk 0:01:13.4]} 25... Kxc5 {[%clk 0:00:33.5]} 26.
Kc3 {[%clk 0:01:01.2]} 26... Rc7 {[%clk 0:00:15.3]} 27. Kb2 {[%clk 0:01:01.2]}
27... Rce7 {[%clk 0:00:14.3]} 28. Nf5 {[%clk 0:01:01.3]} 28... Rf7 {[%clk
0:00:13.7]} 29. Rf1 {[%clk 0:01:02.4]} 29... g6 {[%clk 0:00:14.1]} 30. Rxh1
{[%clk 0:00:55.3]} 30... gxf5 {[%clk 0:00:14.9]} 31. Rf1 {[%clk 0:00:56.3]}
31... f4 {[%clk 0:00:16.2]} 32. Rf3 {[%clk 0:00:55.1]} 32... Rg8 {[%clk
0:00:16.8]} 33. g4 {[%clk 0:00:54.7]} 33... Rg5 {[%clk 0:00:14.6]} 34. Bf5
{[%clk 0:00:54.3]} 34... Rfxf5 {[%clk 0:00:14.2]} 35. gxf5 {[%clk 0:00:54.4]}
35... Rxf5 {[%clk 0:00:16.1]} 36. Kc3 {[%clk 0:00:55.8]} 36... a5 {[%clk
0:00:15.5]} 37. Kd3 {[%clk 0:00:57]} 37... Kd5 {[%clk 0:00:17]} 38. h4 {[%clk
0:00:53.3]} 38... h5 {[%clk 0:00:15.5]} 39. Rf1 {[%clk 0:00:49.9]} 39... f3
{[%clk 0:00:10.5]} 40. Ke3 {[%clk 0:00:50.7]} 40... f2 {[%clk 0:00:10.7]} 41.
Rxf2 {[%clk 0:00:50.5]} 41... Rxf2 {[%clk 0:00:12.6]} 42. Kxf2 {[%clk
0:00:52.1]} 42... Ke4 {[%clk 0:00:14.3]} 43. Kg3 {[%clk 0:00:53.2]} 43... Ke3
{[%clk 0:00:14.4]} 44. c3 {[%clk 0:00:53]} 44... a4 {[%clk 0:00:14.3]} 45. Kh3
{[%clk 0:00:51.7]} 45... Kf3 {[%clk 0:00:15.5]} 46. Kh2 {[%clk 0:00:52.5]} 46...
Kg4 {[%clk 0:00:16.9]} 47. Kg2 {[%clk 0:00:53.7]} 47... Kxh4 {[%clk 0:00:18.8]}
48. Kf3 {[%clk 0:00:54]} 48... Kh3 {[%clk 0:00:19.5]} 49. Kf4 {[%clk 0:00:55.2]}
49... Kh4 {[%clk 0:00:20.8]} 50. Kf3 {[%clk 0:00:53.3]} 50... Kg5 {[%clk
0:00:22.1]} 51. Kg3 {[%clk 0:00:54.6]} 51... h4+ {[%clk 0:00:22.6]} 52. Kh3
{[%clk 0:00:55.5]} 52... Kh5 {[%clk 0:00:24.2]} 53. Kh2 {[%clk 0:00:56.4]} 53...
Kg4 {[%clk 0:00:26.1]} 54. Kg2 {[%clk 0:00:57.6]} 54... Kg5 {[%clk 0:00:27.6]}
55. Kh3 {[%clk 0:00:58.9]} 55... Kh5 {[%clk 0:00:29.2]} 56. Kh2 {[%clk
0:01:00.4]} 56... Kg4 {[%clk 0:00:30.8]} 57. Kg2 {[%clk 0:01:01.2]} 57... Kf4
{[%clk 0:00:30.6]} 58. Kh3 {[%clk 0:01:02.8]} 58... Ke3 {[%clk 0:00:31.6]} 59.
Kxh4 {[%clk 0:01:04.4]} 59... Kd3 {[%clk 0:00:33.2]} 60. Kg3 {[%clk 0:01:06.1]}
60... Kxc3 {[%clk 0:00:34.6]} 61. Kf2 {[%clk 0:01:08]} 61... Kb3 {[%clk
0:00:36.4]} 62. Ke1 {[%clk 0:01:08.3]} 62... Kxa3 {[%clk 0:00:38.3]} 63. Kd2
{[%clk 0:01:09.7]} 63... Kb2 {[%clk 0:00:39.8]} 0-1

[Event "*** Titled Tuesday Blitz"]
[Site "Chess.com"]
[Date "2018.08.07"]
[Round "9"]
[White "gena217"]
[Black "ShimanovAlex"]
[Result "1-0"]
[WhiteElo "2737"]
[BlackElo "2762"]
[TimeControl "180+2"]
[EndTime "15:06:44 PDT"]
[Termination "gena217 won by resignation"]

1. e4 {[%clk 0:03:01.9]} 1... g6 {[%clk 0:03:00.5]} 2. d4 {[%clk 0:03:02.5]}
2... Bg7 {[%clk 0:03:01.9]} 3. Nf3 {[%clk 0:03:04]} 3... d6 {[%clk 0:03:03.1]}
4. Bc4 {[%clk 0:03:04.3]} 4... e6 {[%clk 0:03:03.6]} 5. O-O {[%clk 0:03:03.2]}
5... Ne7 {[%clk 0:03:05]} 6. Re1 {[%clk 0:03:02]} 6... Nd7 {[%clk 0:03:03.2]} 7.
Bf1 {[%clk 0:03:01.6]} 7... b6 {[%clk 0:03:04.1]} 8. c4 {[%clk 0:03:02]} 8...
Bb7 {[%clk 0:03:05.2]} 9. Nc3 {[%clk 0:03:02.6]} 9... h6 {[%clk 0:03:04.5]} 10.
Be3 {[%clk 0:02:59.4]} 10... g5 {[%clk 0:03:05.2]} 11. Rc1 {[%clk 0:02:17.1]}
11... Ng6 {[%clk 0:03:04.4]} 12. b4 {[%clk 0:02:17.5]} 12... a5 {[%clk
0:02:57.6]} 13. a3 {[%clk 0:02:09.6]} 13... axb4 {[%clk 0:02:46.8]} 14. axb4
{[%clk 0:02:11.3]} 14... O-O {[%clk 0:02:47.6]} 15. h3 {[%clk 0:01:50.4]} 15...
f5 {[%clk 0:02:40.4]} 16. exf5 {[%clk 0:01:46]} 16... exf5 {[%clk 0:02:41.5]}
17. d5 {[%clk 0:01:43]} 17... f4 {[%clk 0:02:30.9]} 18. Bd4 {[%clk 0:01:33]}
18... Nde5 {[%clk 0:02:31.7]} 19. Bxe5 {[%clk 0:01:27.5]} 19... Nxe5 {[%clk
0:02:31.7]} 20. Nd4 {[%clk 0:01:27.8]} 20... g4 {[%clk 0:02:18.5]} 21. hxg4
{[%clk 0:01:13.6]} 21... Qh4 {[%clk 0:02:18.9]} 22. Be2 {[%clk 0:01:10.4]} 22...
Rae8 {[%clk 0:02:00.7]} 23. Nf3 {[%clk 0:01:06.1]} 23... Nxf3+ {[%clk
0:01:51.1]} 24. Bxf3 {[%clk 0:01:08]} 24... Be5 {[%clk 0:01:52.6]} 25. Ne2
{[%clk 0:01:02.9]} 25... h5 {[%clk 0:01:49.5]} 26. gxh5 {[%clk 0:01:02.6]} 26...
Kh8 {[%clk 0:01:49.9]} 27. Nd4 {[%clk 0:01:02.1]} 27... Bc8 {[%clk 0:01:50.1]}
28. Nc6 {[%clk 0:00:59.3]} 28... Rg8 {[%clk 0:01:33.8]} 29. Nxe5 {[%clk
0:00:52.4]} 29... dxe5 {[%clk 0:01:35.7]} 30. d6 {[%clk 0:00:51.7]} 30... Bh3
{[%clk 0:01:08.6]} 31. Rc3 {[%clk 0:00:48.4]} 31... Rg7 {[%clk 0:00:53.1]} 32.
dxc7 {[%clk 0:00:30.7]} 32... Reg8 {[%clk 0:00:47.9]} 33. Qd5 {[%clk 0:00:27.6]}
33... e4 {[%clk 0:00:05.2]} 34. Qxe4 {[%clk 0:00:25.4]} 34... Qg5 {[%clk
0:00:03.3]} 35. Kf1 {[%clk 0:00:16.4]} 35... Bc8 {[%clk 0:00:02.9]} 36. Qc6
{[%clk 0:00:16.1]} 36... Rf8 {[%clk 0:00:02.6]} 37. Rd3 {[%clk 0:00:16.2]} 37...
Rgg8 {[%clk 0:00:03.8]} 38. Rd6 {[%clk 0:00:16.6]} 38... Rg7 {[%clk 0:00:04.6]}
39. Rh6+ {[%clk 0:00:17.5]} 39... Rh7 {[%clk 0:00:06]} 40. Rxh7+ {[%clk
0:00:18.3]} 40... Kxh7 {[%clk 0:00:07.9]} 41. Qd6 {[%clk 0:00:16.7]} 41... Rg8
{[%clk 0:00:08.5]} 42. Qe7+ {[%clk 0:00:17.2]} 42... Rg7 {[%clk 0:00:08.7]} 43.
Qxg5 {[%clk 0:00:17.9]} 43... Rxg5 {[%clk 0:00:10.6]} 44. Re8 {[%clk 0:00:18.8]}
44... Rg8 {[%clk 0:00:11.8]} 45. Rxg8 {[%clk 0:00:19.5]} 45... Kxg8 {[%clk
0:00:13.7]} 46. c5 {[%clk 0:00:20.2]} 46... Kf7 {[%clk 0:00:15.5]} 47. cxb6
{[%clk 0:00:21]} 1-0

[Event "*** Titled Tuesday Blitz"]
[Site "Chess.com"]
[Date "2018.08.07"]
[Round "9"]
[White "ozates"]
[Black "thegreendog"]
[Result "0-1"]
[WhiteElo "2472"]
[BlackElo "2355"]
[TimeControl "180+2"]
[EndTime "15:06:51 PDT"]
[Termination "thegreendog won by resignation"]

1. e4 {[%clk 0:03:01.9]} 1... c5 {[%clk 0:03:00.4]} 2. Nf3 {[%clk 0:03:02.6]}
2... d6 {[%clk 0:03:01.7]} 3. Bb5+ {[%clk 0:03:02.3]} 3... Nd7 {[%clk
0:03:00.4]} 4. O-O {[%clk 0:03:03]} 4... Nf6 {[%clk 0:03:00.3]} 5. Re1 {[%clk
0:03:03.6]} 5... a6 {[%clk 0:03:01.1]} 6. Bd3 {[%clk 0:03:05.1]} 6... b5 {[%clk
0:02:58.5]} 7. c3 {[%clk 0:03:04.3]} 7... Bb7 {[%clk 0:02:56.1]} 8. Bc2 {[%clk
0:02:57.9]} 8... e5 {[%clk 0:02:45.2]} 9. d4 {[%clk 0:02:49.8]} 9... cxd4 {[%clk
0:02:45.7]} 10. cxd4 {[%clk 0:02:50.7]} 10... Be7 {[%clk 0:02:45.2]} 11. Nc3
{[%clk 0:02:50.9]} 11... O-O {[%clk 0:02:40.9]} 12. a3 {[%clk 0:02:49.8]} 12...
Rc8 {[%clk 0:02:40.5]} 13. h3 {[%clk 0:02:48.8]} 13... Re8 {[%clk 0:02:40.2]}
14. Bb3 {[%clk 0:02:46.3]} 14... exd4 {[%clk 0:02:35.5]} 15. Qxd4 {[%clk
0:02:19.1]} 15... Nc5 {[%clk 0:02:33.1]} 16. Ba2 {[%clk 0:02:19.8]} 16... Ne6
{[%clk 0:02:14.9]} 17. Bxe6 {[%clk 0:02:01.4]} 17... fxe6 {[%clk 0:02:15.8]} 18.
Ng5 {[%clk 0:02:02.9]} 18... Bf8 {[%clk 0:02:12.6]} 19. e5 {[%clk 0:02:00.2]}
19... dxe5 {[%clk 0:02:13.2]} 20. Qxe5 {[%clk 0:01:58.5]} 20... Rc5 {[%clk
0:02:06.9]} 21. Qe2 {[%clk 0:01:46]} 21... Nd5 {[%clk 0:01:30.6]} 22. Nce4
{[%clk 0:00:56.2]} 22... Rc7 {[%clk 0:01:17.4]} 23. Qg4 {[%clk 0:00:46.7]} 23...
Nf6 {[%clk 0:01:07.1]} 24. Nxf6+ {[%clk 0:00:40.4]} 24... Qxf6 {[%clk
0:01:07.8]} 25. Nxh7 {[%clk 0:00:34.4]} 25... Kxh7 {[%clk 0:00:56]} 26. Qh5+
{[%clk 0:00:34.9]} 26... Kg8 {[%clk 0:00:49.2]} 27. Qxe8 {[%clk 0:00:36.8]}
27... Bd5 {[%clk 0:00:41]} 28. Qh5 {[%clk 0:00:27.9]} 28... Rc2 {[%clk
0:00:27.4]} 29. Be3 {[%clk 0:00:27.6]} 29... Rxb2 {[%clk 0:00:22]} 30. Rad1
{[%clk 0:00:25.2]} 30... Rb3 {[%clk 0:00:21.4]} 31. Bd4 {[%clk 0:00:21.6]} 31...
Qf7 {[%clk 0:00:22.5]} 32. Qg4 {[%clk 0:00:20]} 32... Bxa3 {[%clk 0:00:20.8]}
33. Re5 {[%clk 0:00:19.8]} 33... Be7 {[%clk 0:00:18.2]} 34. Rc1 {[%clk
0:00:19.1]} 34... Bc4 {[%clk 0:00:16.5]} 35. Rh5 {[%clk 0:00:18.1]} 35... Bf6
{[%clk 0:00:13.3]} 36. Rd1 {[%clk 0:00:18.7]} 36... e5 {[%clk 0:00:11.1]} 37.
Bxe5 {[%clk 0:00:18.5]} 37... Be6 {[%clk 0:00:10.4]} 38. Qf3 {[%clk 0:00:16.4]}
38... Rxf3 {[%clk 0:00:07.8]} 39. Bxf6 {[%clk 0:00:16.2]} 39... Qxh5 {[%clk
0:00:05.4]} 40. gxf3 {[%clk 0:00:13]} 40... gxf6 {[%clk 0:00:06]} 41. Rd8+
{[%clk 0:00:14.9]} 41... Kf7 {[%clk 0:00:06.9]} 42. Rd3 {[%clk 0:00:16.8]} 42...
Qxh3 {[%clk 0:00:07.8]} 43. Re3 {[%clk 0:00:16.7]} 43... Qf5 {[%clk 0:00:08.8]}
44. Kf1 {[%clk 0:00:18]} 44... b4 {[%clk 0:00:10.2]} 45. Kg2 {[%clk 0:00:19]}
45... b3 {[%clk 0:00:11.5]} 46. Rc3 {[%clk 0:00:20.2]} 46... b2 {[%clk
0:00:12.5]} 47. Rc7+ {[%clk 0:00:21.9]} 47... Kg6 {[%clk 0:00:13.7]} 0-1

[Event "*** Titled Tuesday Blitz"]
[Site "Chess.com"]
[Date "2018.08.07"]
[Round "9"]
[White "DoctorSocrates"]
[Black "Margency"]
[Result "0-1"]
[WhiteElo "2556"]
[BlackElo "2721"]
[TimeControl "180+2"]
[EndTime "15:06:57 PDT"]
[Termination "Margency won by resignation"]

1. Nc3 {[%clk 0:03:01.9]} 1... d5 {[%clk 0:02:56.7]} 2. e4 {[%clk 0:03:01.9]}
2... e6 {[%clk 0:02:47.6]} 3. Nf3 {[%clk 0:02:58.7]} 3... Nf6 {[%clk 0:02:46.9]}
4. d3 {[%clk 0:02:59.3]} 4... c5 {[%clk 0:02:46.1]} 5. Be2 {[%clk 0:02:59.7]}
5... Nc6 {[%clk 0:02:46]} 6. O-O {[%clk 0:03:00.7]} 6... Be7 {[%clk 0:02:43.7]}
7. exd5 {[%clk 0:03:00.7]} 7... Nxd5 {[%clk 0:02:38.3]} 8. Nxd5 {[%clk 0:03:00]}
8... Qxd5 {[%clk 0:02:39]} 9. c3 {[%clk 0:02:52]} 9... O-O {[%clk 0:02:38.8]}
10. Be3 {[%clk 0:02:52.5]} 10... Bf6 {[%clk 0:02:28.1]} 11. Nd2 {[%clk
0:02:50.2]} 11... b6 {[%clk 0:02:27.9]} 12. Bf3 {[%clk 0:02:49]} 12... Qd7
{[%clk 0:02:26.4]} 13. Qa4 {[%clk 0:02:34.4]} 13... Ne5 {[%clk 0:02:20.5]} 14.
Qxd7 {[%clk 0:02:32.8]} 14... Nxf3+ {[%clk 0:02:21.3]} 15. Nxf3 {[%clk
0:02:33.3]} 15... Bxd7 {[%clk 0:02:22.4]} 16. d4 {[%clk 0:02:34.6]} 16... cxd4
{[%clk 0:02:21.3]} 17. Bxd4 {[%clk 0:02:36.5]} 17... Be7 {[%clk 0:02:19.2]} 18.
Ne5 {[%clk 0:02:34.4]} 18... Be8 {[%clk 0:02:20]} 19. c4 {[%clk 0:02:31.5]}
19... f6 {[%clk 0:02:19.6]} 20. Ng4 {[%clk 0:02:23.8]} 20... e5 {[%clk
0:02:18.2]} 21. Bc3 {[%clk 0:02:22.1]} 21... Rc8 {[%clk 0:02:18.9]} 22. Ne3
{[%clk 0:02:18.2]} 22... Bf7 {[%clk 0:02:19.1]} 23. Rfc1 {[%clk 0:02:01.3]}
23... Bxc4 {[%clk 0:02:10.2]} 24. Bxe5 {[%clk 0:02:02]} 24... Be6 {[%clk
0:01:59.1]} 25. Rxc8 {[%clk 0:01:58.6]} 25... Rxc8 {[%clk 0:01:59.4]} 26. Bc3
{[%clk 0:02:00.5]} 26... Kf7 {[%clk 0:01:57]} 27. Rd1 {[%clk 0:01:58.9]} 27...
b5 {[%clk 0:01:53.1]} 28. a3 {[%clk 0:01:58.9]} 28... h5 {[%clk 0:01:39.9]} 29.
h4 {[%clk 0:01:52.1]} 29... Bxa3 {[%clk 0:01:23.6]} 30. Bxf6 {[%clk 0:01:42.2]}
30... gxf6 {[%clk 0:01:12.4]} 31. bxa3 {[%clk 0:01:41.9]} 31... Rc3 {[%clk
0:01:13.9]} 32. Ra1 {[%clk 0:01:34.1]} 32... a5 {[%clk 0:01:13.8]} 33. Kf1
{[%clk 0:01:35.1]} 33... f5 {[%clk 0:01:08.9]} 34. g3 {[%clk 0:01:34.1]} 34...
Kf6 {[%clk 0:01:07.2]} 35. Ke2 {[%clk 0:01:31]} 35... Ke5 {[%clk 0:01:05.6]} 36.
Ng2 {[%clk 0:01:30.9]} 36... Bc4+ {[%clk 0:00:59.3]} 37. Kd2 {[%clk 0:01:31.1]}
37... Rd3+ {[%clk 0:00:59.4]} 38. Ke1 {[%clk 0:01:30.5]} 38... Rb3 {[%clk
0:00:42.8]} 39. Nf4 {[%clk 0:01:29.8]} 39... Bf7 {[%clk 0:00:43.5]} 40. Kd2
{[%clk 0:01:20.9]} 40... Ke4 {[%clk 0:00:42.1]} 41. Re1+ {[%clk 0:01:03.6]}
41... Kf3 {[%clk 0:00:38.8]} 42. Re7 {[%clk 0:01:00]} 42... Bc4 {[%clk
0:00:39.3]} 43. Nxh5 {[%clk 0:00:54.7]} 43... Rxa3 {[%clk 0:00:35.9]} 44. Re5
{[%clk 0:00:56.1]} 44... Kxf2 {[%clk 0:00:19.8]} 45. Rxf5+ {[%clk 0:00:55.7]}
45... Kg2 {[%clk 0:00:21.2]} 46. g4 {[%clk 0:00:54.6]} 46... b4 {[%clk
0:00:21.6]} 47. Nf6 {[%clk 0:00:41.3]} 47... Ra2+ {[%clk 0:00:21.9]} 48. Ke3
{[%clk 0:00:36.5]} 48... b3 {[%clk 0:00:23.3]} 49. Ne4 {[%clk 0:00:37.4]} 49...
Re2+ {[%clk 0:00:22.4]} 50. Kd4 {[%clk 0:00:35.8]} 50... Rxe4+ {[%clk
0:00:23.6]} 51. Kxe4 {[%clk 0:00:36.9]} 51... b2 {[%clk 0:00:25.2]} 0-1

[Event "*** Titled Tuesday Blitz"]
[Site "Chess.com"]
[Date "2018.08.07"]
[Round "9"]
[White "Marcan2b"]
[Black "2Tilted"]
[Result "1-0"]
[WhiteElo "2305"]
[BlackElo "2316"]
[TimeControl "180+2"]
[EndTime "15:06:59 PDT"]
[Termination "Marcan2b won by checkmate"]

1. e4 {[%clk 0:02:53.1]} 1... c5 {[%clk 0:03:00.4]} 2. Nc3 {[%clk 0:02:53.3]}
2... Nc6 {[%clk 0:03:00.9]} 3. Bb5 {[%clk 0:02:52.8]} 3... Nd4 {[%clk
0:03:00.9]} 4. Nf3 {[%clk 0:02:53.7]} 4... Nxb5 {[%clk 0:03:01.2]} 5. Nxb5
{[%clk 0:02:55.6]} 5... a6 {[%clk 0:03:02.3]} 6. Nc3 {[%clk 0:02:56.6]} 6... e6
{[%clk 0:03:03.4]} 7. d4 {[%clk 0:02:57.5]} 7... cxd4 {[%clk 0:03:04.2]} 8. Qxd4
{[%clk 0:02:59.4]} 8... Ne7 {[%clk 0:03:04.1]} 9. Bf4 {[%clk 0:02:50]} 9... Nc6
{[%clk 0:03:04]} 10. Qd2 {[%clk 0:02:50.8]} 10... Bb4 {[%clk 0:03:01.3]} 11. a3
{[%clk 0:02:49.6]} 11... Be7 {[%clk 0:03:01.5]} 12. O-O-O {[%clk 0:02:39.7]}
12... O-O {[%clk 0:03:00.6]} 13. Rhe1 {[%clk 0:02:39.6]} 13... b5 {[%clk
0:02:56.9]} 14. Bd6 {[%clk 0:02:36.3]} 14... b4 {[%clk 0:02:55.5]} 15. axb4
{[%clk 0:02:31.7]} 15... Nxb4 {[%clk 0:02:56.1]} 16. Bxe7 {[%clk 0:02:32.1]}
16... Qxe7 {[%clk 0:02:58]} 17. Qd6 {[%clk 0:02:32.8]} 17... Qxd6 {[%clk
0:02:57.5]} 18. Rxd6 {[%clk 0:02:34.7]} 18... f5 {[%clk 0:02:57]} 19. Ne5 {[%clk
0:02:00.5]} 19... fxe4 {[%clk 0:02:52]} 20. Nxe4 {[%clk 0:02:02.4]} 20... Ra7
{[%clk 0:02:46.5]} 21. c3 {[%clk 0:01:58.2]} 21... Nd5 {[%clk 0:02:34]} 22. f3
{[%clk 0:01:54.5]} 22... Nf6 {[%clk 0:02:24.6]} 23. Nc5 {[%clk 0:01:50]} 23...
Ne8 {[%clk 0:02:20.3]} 24. Rb6 {[%clk 0:01:33.9]} 24... g5 {[%clk 0:01:40.4]}
25. h3 {[%clk 0:01:13.7]} 25... Kg7 {[%clk 0:01:32.6]} 26. Rd1 {[%clk
0:01:06.5]} 26... d6 {[%clk 0:01:28.5]} 27. Nc6 {[%clk 0:01:05.6]} 27... Ra8
{[%clk 0:01:20.5]} 28. Ne4 {[%clk 0:01:04.6]} 28... d5 {[%clk 0:01:12.1]} 29.
Nc5 {[%clk 0:01:02.2]} 29... Rf7 {[%clk 0:00:59]} 30. Nd8 {[%clk 0:00:50.5]}
30... Re7 {[%clk 0:00:57.7]} 31. Ndxe6+ {[%clk 0:00:49.4]} 31... Bxe6 {[%clk
0:00:57.7]} 32. Nxe6+ {[%clk 0:00:51.3]} 32... Kg8 {[%clk 0:00:51.3]} 33. Rxd5
{[%clk 0:00:48.6]} 33... h6 {[%clk 0:00:52.6]} 34. Nd4 {[%clk 0:00:37.8]} 34...
Nc7 {[%clk 0:00:44]} 35. Rdd6 {[%clk 0:00:37.3]} 35... Nb5 {[%clk 0:00:42.9]}
36. Rg6+ {[%clk 0:00:36.1]} 36... Kf8 {[%clk 0:00:42.7]} 37. Rbf6+ {[%clk
0:00:34.7]} 37... Rf7 {[%clk 0:00:43.8]} 38. Nxb5 {[%clk 0:00:33.3]} 38... axb5
{[%clk 0:00:44.9]} 39. Rxh6 {[%clk 0:00:32.6]} 39... Ra1+ {[%clk 0:00:45.3]} 40.
Kd2 {[%clk 0:00:32.3]} 40... Rg1 {[%clk 0:00:47.2]} 41. Rxf7+ {[%clk 0:00:30.4]}
41... Kxf7 {[%clk 0:00:49.1]} 42. g4 {[%clk 0:00:30.8]} 42... Rg2+ {[%clk
0:00:50]} 43. Ke3 {[%clk 0:00:31.6]} 43... Rxb2 {[%clk 0:00:51.4]} 44. Rb6
{[%clk 0:00:31.9]} 44... Rc2 {[%clk 0:00:46.4]} 45. Ke4 {[%clk 0:00:30.2]} 45...
Rxc3 {[%clk 0:00:46.8]} 46. Rxb5 {[%clk 0:00:30.3]} 46... Rc4+ {[%clk
0:00:45.7]} 47. Kf5 {[%clk 0:00:30.6]} 47... Rf4+ {[%clk 0:00:46.1]} 48. Kxg5
{[%clk 0:00:30.7]} 48... Rxf3 {[%clk 0:00:47.6]} 49. h4 {[%clk 0:00:31.6]} 49...
Kg7 {[%clk 0:00:49.1]} 50. Rb7+ {[%clk 0:00:31.9]} 50... Kh8 {[%clk 0:00:49.7]}
51. h5 {[%clk 0:00:32.5]} 51... Ra3 {[%clk 0:00:49.8]} 52. Rb6 {[%clk
0:00:30.7]} 52... Ra4 {[%clk 0:00:49.8]} 53. h6 {[%clk 0:00:29.4]} 53... Kh7
{[%clk 0:00:49.3]} 54. Rb7+ {[%clk 0:00:28.1]} 54... Kh8 {[%clk 0:00:50.3]} 55.
Kh5 {[%clk 0:00:28.9]} 55... Ra1 {[%clk 0:00:50.9]} 56. g5 {[%clk 0:00:29.2]}
56... Ra2 {[%clk 0:00:50.4]} 57. Rb8+ {[%clk 0:00:27.7]} 57... Kh7 {[%clk
0:00:51]} 58. g6# {[%clk 0:00:28.9]} 1-0

[Event "*** Titled Tuesday Blitz"]
[Site "Chess.com"]
[Date "2018.08.07"]
[Round "9"]
[White "sergeikim"]
[Black "Mikhail_Golubev"]
[Result "0-1"]
[WhiteElo "2355"]
[BlackElo "2447"]
[TimeControl "180+2"]
[EndTime "15:07:01 PDT"]
[Termination "Mikhail_Golubev won by resignation"]

1. d4 {[%clk 0:03:01.9]} 1... Nf6 {[%clk 0:02:59.7]} 2. c4 {[%clk 0:03:01.8]}
2... g6 {[%clk 0:02:59.7]} 3. Nc3 {[%clk 0:03:02.4]} 3... Bg7 {[%clk 0:03:01]}
4. e4 {[%clk 0:03:03]} 4... d6 {[%clk 0:03:01.9]} 5. Nge2 {[%clk 0:03:03.4]}
5... e5 {[%clk 0:02:56.6]} 6. d5 {[%clk 0:03:01.1]} 6... Nh5 {[%clk 0:02:41.6]}
7. Be3 {[%clk 0:02:51.4]} 7... O-O {[%clk 0:02:34.7]} 8. Qd2 {[%clk 0:02:51.3]}
8... f5 {[%clk 0:02:18.6]} 9. f3 {[%clk 0:02:48]} 9... Nd7 {[%clk 0:02:16.5]}
10. O-O-O {[%clk 0:02:37.2]} 10... a6 {[%clk 0:02:06.1]} 11. exf5 {[%clk
0:02:25.9]} 11... gxf5 {[%clk 0:02:05.3]} 12. g4 {[%clk 0:02:26.2]} 12... fxg4
{[%clk 0:01:52.5]} 13. fxg4 {[%clk 0:02:25.9]} 13... Nf4 {[%clk 0:01:50.4]} 14.
Ng3 {[%clk 0:02:17.1]} 14... Nf6 {[%clk 0:01:34.3]} 15. h3 {[%clk 0:02:15.3]}
15... Qe8 {[%clk 0:01:12]} 16. Nge4 {[%clk 0:02:00.2]} 16... Nxe4 {[%clk
0:00:58.6]} 17. Nxe4 {[%clk 0:02:00.1]} 17... b5 {[%clk 0:00:54.7]} 18. c5
{[%clk 0:01:56.5]} 18... b4 {[%clk 0:00:37.6]} 19. Kb1 {[%clk 0:01:48.9]} 19...
Qg6 {[%clk 0:00:35.2]} 20. Qc2 {[%clk 0:01:37.3]} 20... a5 {[%clk 0:00:31.6]}
21. Bxf4 {[%clk 0:01:16.5]} 21... exf4 {[%clk 0:00:27.1]} 22. Bd3 {[%clk
0:01:17.5]} 22... Qh6 {[%clk 0:00:26.5]} 23. g5 {[%clk 0:01:14.2]} 23... Qh4
{[%clk 0:00:26.9]} 24. Nf6+ {[%clk 0:01:08.8]} 24... Bxf6 {[%clk 0:00:27]} 25.
gxf6 {[%clk 0:01:09.9]} 25... Qxf6 {[%clk 0:00:27.6]} 26. Bxh7+ {[%clk
0:01:06.4]} 26... Kh8 {[%clk 0:00:28]} 27. Be4 {[%clk 0:01:00.7]} 27... a4
{[%clk 0:00:28.1]} 28. c6 {[%clk 0:00:45.3]} 28... b3 {[%clk 0:00:26.4]} 29.
axb3 {[%clk 0:00:41]} 29... axb3 {[%clk 0:00:26.2]} 30. Qxb3 {[%clk 0:00:42.1]}
30... Ba6 {[%clk 0:00:15.5]} 31. Qc3 {[%clk 0:00:39.4]} 31... Qxc3 {[%clk
0:00:15.1]} 32. bxc3 {[%clk 0:00:40.3]} 32... f3 {[%clk 0:00:16.1]} 33. Bd3
{[%clk 0:00:37.3]} 33... Bxd3+ {[%clk 0:00:15.3]} 34. Rxd3 {[%clk 0:00:36.7]}
34... Rfb8+ {[%clk 0:00:16.6]} 35. Kc2 {[%clk 0:00:30.5]} 35... Ra2+ {[%clk
0:00:16.1]} 36. Kc1 {[%clk 0:00:29.2]} 36... Ra1+ {[%clk 0:00:16.5]} 37. Kd2
{[%clk 0:00:29.6]} 37... Rxh1 {[%clk 0:00:14.9]} 38. Rxf3 {[%clk 0:00:30.9]}
38... Kg7 {[%clk 0:00:13.1]} 39. Kd3 {[%clk 0:00:29.8]} 39... Rf8 {[%clk
0:00:12.7]} 40. Re3 {[%clk 0:00:27.9]} 40... Rf7 {[%clk 0:00:12.9]} 41. Kc4
{[%clk 0:00:28.2]} 41... Rd1 {[%clk 0:00:12.8]} 42. h4 {[%clk 0:00:22.3]} 42...
Rf4+ {[%clk 0:00:13]} 43. Kb3 {[%clk 0:00:22.4]} 43... Rxd5 {[%clk 0:00:13.2]}
44. Re7+ {[%clk 0:00:22.6]} 44... Kf6 {[%clk 0:00:14.1]} 45. Rxc7 {[%clk
0:00:23.1]} 45... Rc5 {[%clk 0:00:14.8]} 46. Rc8 {[%clk 0:00:21.9]} 46... Rfc4
{[%clk 0:00:14.6]} 47. h5 {[%clk 0:00:20.9]} 47... Rxc3+ {[%clk 0:00:14.3]} 48.
Kb4 {[%clk 0:00:21.3]} 48... R3c4+ {[%clk 0:00:15.1]} 0-1